Cogmind - Beta 16 @@@ ROGUE MODE // 2025.11.19 @ 11:13:15 // Winter2019/RPGLIKE Player: Jaegerpls Result: Destroyed by G-67 Veteran with Plasma Rifle Performance ------------- Evolutions (4) 2000 Regions Visited (6) 1200 Robots Destroyed (79) 395 Value Destroyed (3057) 3057 Prototype IDs (27) 540 Alien Tech Used (0) 0 Bonus (854) 854 TOTAL SCORE: 8046 Bonus ------- High Alert Combat Kills 54 Registered with UFD 300 Met Optimus in HQ 500 Cogmind --------- Core Integrity 0/600 Matter 22/300 Energy 300/300 System Corruption 7% Temperature Cool (0) Movement Treading (232) Ox1 Location -6/Factory Parts ------- > --- POWER (1+3) ------ Micro Nuclear Core (+) Micro Nuclear Core (+) Micro Nuclear Core (+) Light Angular Momentum Engine > --- PROPULSION (3) --- Improved Treads Advanced Treads > --- UTILITY (7) ------ Experimental Signal Interpreter Improved Terrain Scanner Improved Targeting Computer Gun Armor Makeshift Hacking Suite Power Bank > --- WEAPON (3+2) ----- Gauss Rifle Gauss Rifle Heavy Battle Rifle > --- INVENTORY (3) ---- Experimental Sensor Array A0-MCA's Component Scanner Battle Rifle Peak State ------------ > --- POWER ------------ Micro Nuclear Core Micro Nuclear Core Micro Nuclear Core Light Angular Momentum Engine > --- PROPULSION ------- Improved Treads Advanced Treads > --- UTILITY ---------- Experimental Signal Interpreter Improved Terrain Scanner Improved Targeting Computer Gun Armor Makeshift Hacking Suite Power Bank > --- WEAPON ----------- Gauss Rifle Gauss Rifle Heavy Battle Rifle > --- INVENTORY -------- Experimental Sensor Array A0-MCA's Component Scanner Battle Rifle [Rating: 71] Favorites ----------- Power Makeshift Power Source Engine Makeshift Power Source Power Core Micro Nuclear Core Propulsion Spiked Treads Treads Spiked Treads Wheel Wheel Utility Improved Terrain Scanner Device Improved Terrain Scanner Processor Targeting Computer Hackware Makeshift Hacking Suite Protection Gun Armor Weapon Battle Rifle Energy Gun Medium Laser Energy Cannon Beam Cannon Ballistic Gun Battle Rifle Ballistic Cannon Light Cannon Build | -11 -10 -10 -10 -9 -9 -6 ------- Run | Yrd Mat Min Sub Rec Scr Fac Slots Evolved 10 | 4 2 1 . . . 3 Power . | . . . . . . . Propulsion 2 | 1 . . . . . 1 Utility 6 | 2 1 1 . . . 2 Weapon 2 | 1 1 . . . . . Parts Attached 49 | 7 13 4 12 3 3 7 Power 8 | 1 1 1 1 . 1 3 Engine 4 | 1 . 1 1 . 1 . Core 4 | . 1 . . . . 3 Reactor . | . . . . . . . Propulsion 9 | 3 2 . 2 1 1 . Treads 6 | . 2 . 2 1 1 . Leg . | . . . . . . . Wheel 3 | 3 . . . . . . Hover . | . . . . . . . Flight . | . . . . . . . Utility 16 | 1 4 3 5 2 . 1 Device 6 | 1 1 3 1 . . . Storage . | . . . . . . . Processor 4 | . 2 . . 1 . 1 Hackware 1 | . . . . 1 . . Protection 5 | . 1 . 4 . . . Artifact . | . . . . . . . Weapon 16 | 2 6 . 4 . 1 3 Energy Gun 4 | 1 3 . . . . . Energy Cannon 2 | . 1 . . . . 1 Ballistic Gun 8 | 1 . . 4 . 1 2 Ballistic Cannon 2 | . 2 . . . . . Launcher . | . . . . . . . Special Weapon . | . . . . . . . Impact Weapon . | . . . . . . . Slashing Weapon . | . . . . . . . Piercing Weapon . | . . . . . . . Special Melee Weapon . | . . . . . . . Unidentified Prototypes 2 | . . 1 1 . . . Parts Lost 3 | . 1 1 1 . . . Power 1 | . . 1 . . . . Propulsion . | . . . . . . . Utility 2 | . 1 . 1 . . . Weapon . | . . . . . . . Highest Loss Streak 1 | . 1 1 1 . . . To Critical Strikes . | . . . . . . . Average Backups 1 | . . 1 2 2 2 2 Power . | . . . . . . . Propulsion . | . . . . . . . Utility 1 | . . 1 2 2 2 2 Weapon . | . . . . . . . Tool/Special . | . . . . . . . Unused Backups 2 | . . . 1 . . 1 Power . | . . . . . . . Propulsion . | . . . . . . . Utility 2 | . . . 1 . . 1 Weapon . | . . . . . . . Tool/Special . | . . . . . . . Average Slot Usage (%) 80 | . 98 94 82 68 67 77 Engine 5 | . 2 2 7 6 6 5 Core 2 | . 8 2 . . . 6 Treads 14 | . 15 19 15 12 12 10 Device 17 | . 18 30 19 13 12 10 Processor 9 | . 13 10 7 6 6 10 Hackware 2 | . . . . 4 6 5 Protection 4 | . 2 . 6 6 6 5 Energy Cannon 2 | . 7 9 1 . . . Ballistic Gun 13 | . . . 18 18 17 16 Ballistic Cannon 5 | . 15 19 3 . . . Peak Build Rating 71 | 8 16 24 47 48 47 71 Average Rating 37 | 4 13 21 31 44 45 61 On Entrance 26 | . 8 16 23 47 44 47 Avg Prop Armor Cover (%) . | . . . . . . . Naked Turns . | . . . . . . . Heaviest Build 47 | 10 16 17 36 23 25 47 Greatest Support 45 | 20 40 40 40 43 45 45 Greatest Overweight (x) 1 | 1 . . . . . 1 Average Overweight (x) . | . . . . . . . Largest Inventory Capacity 3 | 1 1 2 3 3 3 3 Average Capacity 2 | . 1 1 2 3 3 3 Most Carried 3 | 1 1 2 3 3 3 3 Average Carried 2 | . . 1 2 3 2 2 Final Capacity 3 | 1 1 2 3 3 3 3 Final Carried 3 | . 1 2 3 3 3 3 Class Distribution -------------------- 28% | Hacker-Gunner 23% | Derelict-Gunner 9% | Gunner 8% | Scavenger-Skirmisher 8% | Hacker-Mutant 6% | Skirmisher 4% | Derelict-Skirmisher 4% | Derelict-Mutant 4% | Mutant Dominant Class ---------------- Gunner | -10/Materials Skirmisher | -10/Mines Derelict-Gunner | -10/Subcaves Derelict-Mutant | -9/Recycling Hacker-Gunner | -9/Scraptown Hacker-Gunner | -6/Factory Resources | -11 -10 -10 -10 -9 -9 -6 ----------- Run | Yrd Mat Min Sub Rec Scr Fac Matter Collected 2838 | 232 895 117 795 322 32 445 Remotely 588 | . . 38 550 . . . Salvage Created 2099 | 141 738 109 554 337 . 220 Parts 157 | 9 26 6 49 26 . 41 Haulers Intercepted 2 | . 2 . . . . . Recyclers Shooed 2 | . . . . 1 . 1 Parts Field Recycled . | . . . . . . . Retrieved Matter . | . . . . . . . Parts Self-Destructed 22 | . . . 22 . . . Prevented . | . . . . . . . Parts Restored . | . . . . . . . Kills | -11 -10 -10 -10 -9 -9 -6 ------- Run | Yrd Mat Min Sub Rec Scr Fac Combat Hostiles Destroyed 54 | . 13 4 24 4 . 9 Guns 35 | . 2 . 22 4 . 7 Cannons 17 | . 11 4 2 . . . AOE 2 | . . . . . . 2 Classes Destroyed 16 | 2 7 1 2 2 . 2 Worker 4 | . 1 . . . . 3 Builder 2 | . . . . 2 . . Tunneler 5 | 3 . . . . . 2 Hauler 2 | . 2 . . . . . Recycler 4 | 1 1 1 . 1 . . Mechanic 1 | . 1 . . . . . Operator 1 | . 1 . . . . . Turret 2 | . . . 2 . . . Watcher 4 | . 3 . . . . 1 Swarmer 13 | . 5 2 6 . . . Grunt 12 | . 8 . 2 . . 2 Sentry 4 | . . . . 4 . . Demolisher 2 | . . 2 . . . . Hunter 1 | . . . . . . 1 Programmer 6 | . . . . . . 6 Subdweller 16 | . . . 16 . . . Best Kill Streak 6 | 4 4 2 6 2 . 4 Combat Bots Only 4 | . 3 2 4 2 . 2 Max Kills in Single Turn 4 | 1 1 1 2 1 . 4 Gunslinging 1 | . . . 1 . . . Exploded 2 | . . . . . . 2 Melee . | . . . . . . . Uniques/NPCs Destroyed . | . . . . . . . Combat | -11 -10 -10 -10 -9 -9 -6 -------- Run | Yrd Mat Min Sub Rec Scr Fac Hostile Shots Fired 301 | . 52 9 115 8 . 117 Missed 77 | . 10 1 29 . . 37 Hits 224 | . 42 8 86 8 . 80 Projectile 224 | . 42 8 86 8 . 80 AOE 7 | . 1 4 2 . . . Critical Strikes 3 | . 1 . 1 . . 1 Part Disruptions 1 | . . . . . . 1 Damage Taken 3890 | . 571 178 1553 113 . 1475 Core 2716 | . 397 146 952 86 . 1135 Absorbed by Shields . | . . . . . . . Redirected to Core 2292 | . 311 117 814 72 . 978 Core Remaining (%) 100 | 100 . . . . 100 . Volleys Fired 357 | 11 120 9 74 68 . 75 Largest 3 | 2 3 3 3 3 . 3 Hottest 150 | 60 150 120 120 88 . 89 Shots Fired 837 | 22 295 27 222 113 . 158 Gun 554 | 22 68 . 193 113 . 158 Cannon 283 | . 227 27 29 . . . Launcher . | . . . . . . . Special . | . . . . . . . Kinetic 688 | 11 171 18 217 113 . 158 Thermal 91 | . 77 9 5 . . . Explosive . | . . . . . . . Electromagnetic 58 | 11 47 . . . . . Robot Hit Streak 23 | 7 12 3 23 13 . 13 Robot Miss Streak 3 | 3 3 2 3 2 . 2 Penetration Max . | . . . . . . . Secondary Targets 7 | . . . 7 . . . Max Gunslinging Chain 1 | . . . 1 . . . Shots Hit Robots 350 | 15 84 6 149 28 . 68 Core Hits 117 | 5 26 5 42 13 . 26 Critical Kills 3 | . . . 1 1 . 1 Critical Parts Destroyed 5 | 1 . . 1 1 . 2 Critical Strikes 11 | 1 1 1 3 2 . 3 Destroy 9 | 1 . . 3 2 . 3 Blast 2 | . 1 1 . . . . Melee Attacks . | . . . . . . . Impact . | . . . . . . . Slashing . | . . . . . . . Piercing . | . . . . . . . Sneak Attacks . | . . . . . . . Combat Hostiles . | . . . . . . . Follow-up Attacks . | . . . . . . . Damage Inflicted 6882 | 231 1486 108 2611 597 . 1849 Guns 4673 | 185 274 . 2292 551 . 1371 Cannons 1591 | . 1164 108 319 . . . Explosions 604 | 46 48 . . 46 . 464 Melee . | . . . . . . . Ramming 14 | . . . . . . 14 Kinetic 5369 | 75 798 17 2557 551 . 1371 Thermal 1069 | 46 414 91 54 . . 464 Explosive 46 | . . . . 46 . . Electromagnetic 384 | 110 274 . . . . . Impact . | . . . . . . . Slashing . | . . . . . . . Piercing . | . . . . . . . Highest Corruption 7 | . . . . . . 7 Average Corruption 4 | . . . . . . 4 Corruption Purged . | . . . . . . . Corruption Blocked . | . . . . . . . Effects 42 | . . . . . . 42 Message Errors 9 | . . . . . . 9 Matter Fused 14 | . . . . . . 14 Heat Flow Errors 3 | . . . . . . 3 Energy Discharges 6 | . . . . . . 6 Data Loss (minor) 4 | . . . . . . 4 Data Loss (major) 3 | . . . . . . 3 Misfires 2 | . . . . . . 2 Weapon Failures 1 | . . . . . . 1 Overload Shots . | . . . . . . . Overflow Damage 65 | . 23 . . . . 42 Projectiles 23 | . 23 . . . . . Explosions 42 | . . . . . . 42 Melee . | . . . . . . . Knockbacks 13 | . 10 . 3 . . . Impact . | . . . . . . . Kinetic 13 | . 10 . 3 . . . Secondary . | . . . . . . . Self-Inflicted Damage 69 | . . . . . . 69 Shots 2 | . . . . . . 2 Rammed 6 | . . . . . . 6 Targets Rammed 6 | . . . . . . 6 Kicked . | . . . . . . . Crushed . | . . . . . . . Highest Temperature 226 | . 114 . . . . 226 Average Temperature 42 | . 29 . . . . 103 Received Heat Transfer 885 | . 228 . 336 36 . 285 Siege Activations . | . . . . . . . Martial Activations . | . . . . . . . Shielding Activations . | . . . . . . . Robots Disrupted . | . . . . . . . Combat Hostiles . | . . . . . . . Robots Corrupted . | . . . . . . . Combat Hostiles . | . . . . . . . Parts Fried 3 | 3 . . . . . . Impact Corruptions . | . . . . . . . Robots Melted . | . . . . . . . Combat Hostiles . | . . . . . . . Parts Melted 1 | . . . 1 . . . Heat Transferred 1473 | . 827 185 111 . . 350 Parts Sabotaged . | . . . . . . . Parts Stolen . | . . . . . . . Parts Stripped . | . . . . . . . Power Chain Reactions 2 | 1 1 . . . . . Alert | -11 -10 -10 -10 -9 -9 -6 ------- Run | Yrd Mat Min Sub Rec Scr Fac Maximum Alert Level 3 | . 2 . . . . 3 Low Security (%) 74 | 100 32 100 . 100 . 72 Level 1 16 | . 63 . . . . 5 Level 2 8 | . 4 . . . . 19 Level 3 . | . . . . . . 2 Level 4 . | . . . . . . . Level 5 . | . . . . . . . High Security . | . . . . . . . Max Security . | . . . . . . . Peak Influence 1021 | 10 414 139 . 100 . 1021 Initial 139 | . . 139 . 100 . . Average 122 | 3 235 18 . 30 . 162 Influence Increases 2930 | 20 946 135 290 365 . 1174 Destroy 0b10 Robot/C 800 | . 260 80 200 80 . 180 Destroy 0b10 Robot/NC 125 | 20 45 5 . 25 . 30 Destroy Leader 182 | . 70 20 . . . 92 Successful Hack 20 | . 15 . . 5 . . Disable Machine 1305 | . 345 30 . 210 . 720 Destroy Structure 333 | . 136 . . 45 . 152 Lose Combat Pursuer 165 | . 75 . 90 . . . Influence Decreases 1913 | 20 588 493 80 522 53 157 Entered New Map 382 | . . 219 . 110 53 . Time Decay 1476 | 20 578 274 80 367 . 157 Lost Part 10 | . 10 . . . . . Purge Threat 45 | . . . . 45 . . Squads Dispatched 16 | . 4 . . . . 12 Investigation 2 | . 2 . . . . . Extermination 5 | . . . . . . 5 Reinforcement 4 | . 2 . . . . 2 Assault 2 | . . . . . . 2 Garrison 3 | . . . . . . 3 Intercept . | . . . . . . . Searches Triggered . | . . . . . . . Construction Impeded . | . . . . . . . Haulers Reinforced . | . . . . . . . Active Scanning Responses . | . . . . . . . Cargo Convoy Interrupts 1 | . . . . . . 1 Stealth | -11 -10 -10 -10 -9 -9 -6 --------- Run | Yrd Mat Min Sub Rec Scr Fac Distress Signals 4 | . 3 . . . . 1 Communications Jammed . | . . . . . . . Distress Signals . | . . . . . . . Times Spotted 75 | . 24 4 28 4 . 15 Peak Tracking Total 7 | . 5 2 4 2 . 7 Tactical Retreats 5 | . 3 . 2 . . . Traps | -11 -10 -10 -10 -9 -9 -6 ------- Run | Yrd Mat Min Sub Rec Scr Fac Traps Triggered 3 | . 1 . 1 . . 1 Indirectly . | . . . . . . . Trap Hack Attempts . | . . . . . . . Triggered . | . . . . . . . Disarmed . | . . . . . . . Reprogrammed . | . . . . . . . Reused . | . . . . . . . Traps Extracted . | . . . . . . . Installed . | . . . . . . . Triggered . | . . . . . . . Machines | -11 -10 -10 -10 -9 -9 -6 ---------- Run | Yrd Mat Min Sub Rec Scr Fac Machines Disabled 90 | . 23 2 3 14 . 48 Max in Single Turn 22 | . 2 1 1 2 . 22 Machines Repaired . | . . . . . . . Machines Dismantled . | . . . . . . . Machines Sabotaged . | . . . . . . . Overloaded Fab Kills . | . . . . . . . Hacking | -11 -10 -10 -10 -9 -9 -6 --------- Run | Yrd Mat Min Sub Rec Scr Fac Machines Accessed 28 | . 6 . 2 11 6 3 Terminals 12 | . 4 . . 6 . 2 Fabricators . | . . . . . . . Repair Stations 1 | . . . . . . 1 Recycling Units 7 | . 2 . . 5 . . Scanalyzers . | . . . . . . . Garrison Access . | . . . . . . . Total Hacks 114 | . 21 . 14 35 37 7 Successful 93 | . 14 . 14 26 37 2 Failed 21 | . 7 . . 9 . 5 Catastrophic . | . . . . . . . Database Lockouts . | . . . . . . . Manual 48 | . 17 . . 24 . 7 Terminals 40 | . 14 . . 20 . 6 Fabricators . | . . . . . . . Repair Stations 1 | . . . . . . 1 Recycling Units 22 | . 7 . . 15 . . Scanalyzers . | . . . . . . . Garrison Access . | . . . . . . . Terminal Hacks 59 | . 4 . 14 4 37 . Record 43 | . . . 13 . 30 . Robot Analysis 11 | . 4 . . 1 6 . Prototype ID Bank 1 | . . . . 1 . . Unreport Threat 2 | . . . . 2 . . Proto ID Catalog 2 | . . . 1 . 1 . Fabricator Hacks . | . . . . . . . Repair Station Hacks . | . . . . . . . Recycling Unit Hacks 11 | . 2 . . 9 . . Process 1 | . . . . 1 . . Report Inventory 6 | . 1 . . 5 . . Retrieve Matter 1 | . . . . 1 . . Retrieve Components 3 | . 1 . . 2 . . Scanalyzer . | . . . . . . . Garrison Access Hacks . | . . . . . . . Unauthorized Hacks 23 | . 8 . . 13 . 2 Terminals 14 | . 6 . . 7 . 1 Botnet 5 | . 2 . . 2 . 1 Skim 9 | . 4 . . 5 . . Fabricators . | . . . . . . . Repair Stations 1 | . . . . . . 1 Mechanics 1 | . . . . . . 1 Recycling Units 8 | . 2 . . 6 . . Reject 6 | . 1 . . 5 . . Recyclers 2 | . 1 . . 1 . . Scanalyzers . | . . . . . . . Garrison Access . | . . . . . . . Data Cores Recovered . | . . . . . . . Used . | . . . . . . . Hacking Detections 16 | . 6 . . 8 . 2 Full Trace Events 1 | . 1 . . . . . Feedback Events . | . . . . . . . Feedback Blocked . | . . . . . . . Robot Schematics Acquired . | . . . . . . . Robots Built . | . . . . . . . Authchips . | . . . . . . . Time . | . . . . . . . Total Robot Build Rating . | . . . . . . . Part Schematics Acquired . | . . . . . . . Parts Built . | . . . . . . . Authchips . | . . . . . . . Time . | . . . . . . . Total Part Build Rating . | . . . . . . . Part Studies Acquired . | . . . . . . . Parts Repaired . | . . . . . . . Time . | . . . . . . . Parts Recycled . | . . . . . . . Recycled Matter 28 | . . . . 28 . . Retrieved Matter 28 | . . . . 28 . . Retrieved Components 7 | . 3 . . 4 . . Parts Scanalyzed . | . . . . . . . Part Schematics Acquired . | . . . . . . . Parts Damaged . | . . . . . . . Bothacking | -11 -10 -10 -10 -9 -9 -6 ------------ Run | Yrd Mat Min Sub Rec Scr Fac Used RIF Installer . | . . . . . . . Robots Hacked . | . . . . . . . Non-combat . | . . . . . . . Combat . | . . . . . . . Robot Hacks Applied . | . . . . . . . Relay Couplers Released . | . . . . . . . Fabnet Peak Effective % . | . . . . . . . Robots Rewired . | . . . . . . . Allies Hacked . | . . . . . . . Hacks Repelled . | . . . . . . . Allies | -11 -10 -10 -10 -9 -9 -6 -------- Run | Yrd Mat Min Sub Rec Scr Fac Total Allies . | . . . . . . . Largest Group . | . . . . . . . Highest-Rated Group . | . . . . . . . Highest-Rated Ally . | . . . . . . . Total Orders . | . . . . . . . Ally Attacks . | . . . . . . . Total Damage . | . . . . . . . Kills . | . . . . . . . Allies Corrupted . | . . . . . . . Allies Melted . | . . . . . . . Intel | -11 -10 -10 -10 -9 -9 -6 ------- Run | Yrd Mat Min Sub Rec Scr Fac Active Infowar (turns) 15855 | 11 2010 1598 5124 1905 2004 3203 Sensors 4022 | . . 1439 1341 489 . 753 Terrain 15102 | 11 2010 1598 5124 1905 2004 2450 Robot Analysis Total 11 | . 4 . . 1 6 . Derelict Logs Recovered 4 | . . 2 . . 2 . Drone Launches . | . . . . . . . Drone Recoveries . | . . . . . . . Exploration | -11 -10 -10 -10 -9 -9 -6 ------------- Run | Yrd Mat Min Sub Rec Scr Fac Turns Passed 15933 | 89 2010 1598 5124 1905 2004 3203 Spaces Moved 6504 | 59 1032 498 2281 672 1255 707 Core 16 | 16 . . . . . . Treads 6144 | . 731 498 2281 672 1255 707 Legs . | . . . . . . . Wheels 344 | 43 301 . . . . . Hover . | . . . . . . . Flight . | . . . . . . . Fastest Speed 50 | 50 80 160 160 160 152 152 Average Speed 156 | 76 136 160 160 160 152 180 Slowest Speed 232 | 100 160 160 160 160 160 232 Overloaded Moves . | . . . . . . . Propulsion Burnouts . | . . . . . . . Robots Hopped . | . . . . . . . Potential Cave-ins 2 | . . . . 2 . . Cave-ins Triggered . | . . . . . . . Exploration Rate (%) 69 | 4 98 93 93 97 82 18 Regions Visited 6 Branch Regions 4 Pre-discovered Areas 4 | . . 2 2 . . . Known Exits Taken 1 | . 1 . . . . . Unknown Exits Taken 5 | 1 . 1 1 1 1 . Scrap Searched 19 | . . 1 14 . 4 . Spaces Dug 9 | . . . . 8 . 1 Terrain Destroyed 395 | 6 175 . 1 55 . 158 Melee . | . . . . . . . Projectile 19 | . . . 1 16 . 2 AOE 376 | 6 175 . . 39 . 156 Terrain Rammed . | . . . . . . . Walls Destroyed . | . . . . . . . Machines Disabled . | . . . . . . . Actions | -11 -10 -10 -10 -9 -9 -6 --------- Run | Yrd Mat Min Sub Rec Scr Fac Total 11575 | 77 1376 1278 3601 1397 1346 2500 Wait 4486 | . 187 763 1154 633 85 1664 Move 6498 | 58 1031 497 2280 671 1254 707 Hop . | . . . . . . . Pick Up 5 | . 1 . 2 . 2 . Fast Attach 50 | 6 16 4 13 1 3 7 Attach 2 | . . . 1 . . 1 Detach 6 | . 1 1 3 . . 1 Swap 11 | 1 . 1 3 2 . 4 Drop 36 | 1 11 1 17 1 2 3 Fire 357 | 11 120 9 74 68 . 75 Melee . | . . . . . . . Ram . | . . . . . . . Kick . | . . . . . . . Crush 6 | . . . . . . 6 Escape Stasis . | . . . . . . . Rewire . | . . . . . . . Trap . | . . . . . . . Miscellaneous 118 | . 9 2 54 21 . 32 Route ------- -11/Scrapyard -10/Materials (discovered 5 exits: *Mat x3 / *Min / Sub) -10/Mines (discovered 3 exits: *Mat x2 / *Sub) -10/Subcaves (discovered 3 exits: [*Mat x2] / *Rec) -9/Recycling (discovered 2 exits: [*Fac] / *Scr) -9/Scraptown (discovered 2 exits: *Fac x2) -6/Factory History --------- Turn | Location | Event 5 | -11/Scrapyard | Upgraded with Propulsion slot (x1) 5 | -11/Scrapyard | Upgraded with Utility slot (x2) 5 | -11/Scrapyard | Upgraded with Weapon slot (x1) 27 | -11/Scrapyard | Discovered new exit (range 15) 90 | -11/Scrapyard | Entered Materials 193 | -10/Materials | Discovered new exit (range 16) 303 | -10/Materials | Build established: Mutant 366 | -10/Materials | Discovered new exit (range 15) 452 | -10/Materials | Discovered new exit (range 14) 559 | -10/Materials | Discovered new exit (range 10) 590 | -10/Materials | Derelicts attacked the area 599 | -10/Materials | Reached level 2 656 | -10/Materials | Upgraded with Weapon slot (x1) 954 | -10/Materials | Build established: Gunner 959 | -10/Materials | Discovered new exit (range 16) 1608 | -10/Materials | Reached level 3 1616 | -10/Materials | Upgraded with Utility slot (x1) 1892 | -10/Materials | Identified exit to Materials 2098 | -10/Materials | Identified exit to Mines 2100 | -10/Materials | Entered Mines 2102 | -10/Mines | Met a Derelict bent on vengeance 2136 | -10/Mines | Discovered new exit (range 16) 2146 | -10/Mines | A weapon hastily lodged in a ceiling crevice suddenly fell to the ground 2255 | -10/Mines | Found a damaged Exp. Sensor Array with a note attached 2259 | -10/Mines | Found Prototype Device 2259 | -10/Mines | Identified Exp. Sensor Array 2300 | -10/Mines | Assembled infested the area 2333 | -10/Mines | Discovered exit to Materials (range 13) 2448 | -10/Mines | Core integrity fell below 50% 2550 | -10/Mines | Build established: Skirmisher 3079 | -10/Mines | Learned location of Zion (-7) 3094 | -10/Mines | Discovered exit to Materials (range 13) 3151 | -10/Mines | Reached level 4 3265 | -10/Mines | Upgraded with Utility slot (x1) 3468 | -10/Mines | Learned location of Storage (-9) 3638 | -10/Mines | Build established: Scavenger-Skirmisher 3698 | -10/Mines | Entered Subcaves 3699 | -10/Subcaves | Approached by a straggling Scientist 3855 | -10/Subcaves | Discovered new exit (range 14) 4415 | -10/Subcaves | Discovered new exit (range 12) 4602 | -10/Subcaves | Disturbed a concealed Subdweller 4694 | -10/Subcaves | Disturbed a concealed Subdweller 4700 | -10/Subcaves | Core integrity fell below 20% 4710 | -10/Subcaves | Disturbed a concealed Subdweller 5062 | -10/Subcaves | Build established: Derelict-Gunner 5577 | -10/Subcaves | Shifting Twisted Machinery released Scrap Shield 5638 | -10/Subcaves | Shifting Twisted Machinery released Sub. Optics 6292 | -10/Subcaves | Discovered new exit (range 14) 6311 | -10/Subcaves | A Subdweller sparked back to life 6311 | -10/Subcaves | A Subdweller sparked back to life 6351 | -10/Subcaves | Found Prototype Device 6351 | -10/Subcaves | Identified Power Bank 6353 | -10/Subcaves | Attached Power Bank, gained temporary slots: Power x3 6875 | -10/Subcaves | Visited Clippyterm 6879 | -10/Subcaves | Learned location of Extension (-4) 6879 | -10/Subcaves | Learned location of Section 7 (-2) 7466 | -10/Subcaves | Visited 4L-MR0's lab 7729 | -10/Subcaves | Found Gun Armor 7730 | -10/Subcaves | Attached Gun Armor, gained temporary slots: Weapon x2 8189 | -10/Subcaves | Reached level 5 8822 | -10/Subcaves | Entered Recycling 8827 | -9/Recycling | Build established: Derelict-Skirmisher 9113 | -9/Recycling | Reached level 6 9494 | -9/Recycling | Discovered new exit (range 14) 9598 | -9/Recycling | Build established: Derelict-Mutant 10341 | -9/Recycling | Build established: Hacker-Mutant 10618 | -9/Recycling | Learned 4 Recycling zone layouts 10675 | -9/Recycling | Learned Storage emergency access door positions 10690 | -9/Recycling | Scanned before Scraplab entrance 10705 | -9/Recycling | Discovered new exit (range 14) 10713 | -9/Recycling | Entered Scraplab 10727 | -9/Recycling | Entered Scraptown 10729 | -9/Scraptown | Reached level 7 10909 | -9/Scraptown | Visited UFD Registry 10909 | -9/Scraptown | Registered with UFD as "Beamwalker" 10984 | -9/Scraptown | Scanned Subdweller tech in exchange for log data 10987 | -9/Scraptown | Learned Factory stockpile data 10988 | -9/Scraptown | Learned Research emergency access door positions 11003 | -9/Scraptown | Discovered new exit (range 13) 11043 | -9/Scraptown | Guru changed UFD alias to "Slugpod" 11204 | -9/Scraptown | Visited A0-MCA Data Center 11213 | -9/Scraptown | Given an A- rating by A0-MCA 11300 | -9/Scraptown | Delivered Scrap Shield to a Scientist 11420 | -9/Scraptown | Found A0-MCA's Component Scanner 11466 | -9/Scraptown | Visited Abandonware Association 11494 | -9/Scraptown | Learned abandonware demo "SHUTEYE.EXE" 11494 | -9/Scraptown | Learned abandonware demo "ERRANTS.EXE" 11533 | -9/Scraptown | Visited Curators Association 11567 | -9/Scraptown | Visited Analyses Database 11599 | -9/Scraptown | Visited Scrapoid Pod Storage 11621 | -9/Scraptown | Visited Science Guys 11629 | -9/Scraptown | Build established: Hacker-Gunner 11673 | -9/Scraptown | Visited Infowarlord's Domain 11684 | -9/Scraptown | Found Exp. Signal Interpreter 11739 | -9/Scraptown | Visited Botcube Research 11763 | -9/Scraptown | Visited LU-1G1's Boring Crew 11895 | -9/Scraptown | Visited Symbiants 12139 | -9/Scraptown | Heard Great Nut preacher, LISTEN AND RECITE! 12309 | -9/Scraptown | Visited Assassins FH 12487 | -9/Scraptown | Discovered new exit (range 13) 12646 | -9/Scraptown | Met Optimus 12646 | -9/Scraptown | Accepted into 0bPrime 12731 | -9/Scraptown | Entered Factory 12733 | -6/Factory | Reached level 8 12733 | -6/Factory | Upgraded with Utility slot (x1) 13778 | -6/Factory | Cargo convoy interrupted 14953 | -6/Factory | Garrison activated, responded to threat 14953 | -6/Factory | Reached level 9 15253 | -6/Factory | Reached level 10 15852 | -6/Factory | Reached level 11 15854 | -6/Factory | Upgraded with Propulsion slot (x1) 15854 | -6/Factory | Upgraded with Utility slot (x1) 15881 | -6/Factory | First assault squad dispatched 15899 | -6/Factory | Core integrity fell below 50% 15927 | -6/Factory | Core integrity fell below 20% 15934 | -6/Factory | Destroyed by G-67 Veteran with Plasma Rifle Last Messages --------------- 15852_ Fusion Modulator explodes. 15854_ Upgraded: Propulsion Slot (+1) 15854_ Upgraded: Utility Slot (+1) 15854_ Upgraded: KI Damage % (+5) 15855_ K-01 Serf cleans the Matter Pump. 15858_ System corrupted: Matter fused (-6). 15859_ K-01 Serf cleans the Matter Pump. 15866_ K-01 Serf collects debris. 15873_ System corrupted: Energy discharge (-105). 15873_ K-01 Serf collects debris. 15881_ ALERT: Unidentified disturbance in Zone 6J, multiple assault carriers dispatched. 15906_ System corrupted: Energy discharge (-84). 15915_ U-05 Engineer lays Concrete. 15921_ Slammed into G-67 Veteran. 15928_ System corrupted: Energy discharge (-102). 15928_ Slammed into G-67 Veteran. 15931_ U-05 Engineer lays Concrete. 15933_ Slammed into G-67 Veteran. 15934_ U-05 Engineer lays Concrete. Map ----- +----------------------------------------------------+ | ################ ????????????????????????? | | ################ ? ????????????????????????? | | ################????????????????????????????? | | ################????????????????????????????? | | ##############??????????????????????????????? | | #############???????????????????????????????? | | / #############????#??????????????????????????? | | ############???#??? ??????????????????????? | | ############?###?#? ???????????????????? | | ############?##?### ?????????????????? | | ##################? ? ? ??????????????? | | ##############??##? ##?+?#??????????????? | | ##################? # ?? ????????????? | | ##############?#### # ? ? ?????????????? | | ! ################### # ? ? ????????????? | | !##############?#?## # ?! ??????????????? | | ######################## # ? ?? ??????????? | | ############### # # ? ? ? ?????????? | | #### #! g """ # A #??? ????????????? | | #### # """"" # ###?#??####?????????? | | #### """ # """"" # # ?? ???#??????????? | | #### """ # # #?"""? ????????????? | | #### """ # """ # # ?"?"? ????????????? | | #### "T" # """"" g + "?"?? ?#?????????? | | #### """ # """"" # gg # """? ?????????????? | | #### # # @ #?"?""?? #??????????? | | "####"""" """ """"+;;;; # """????#??????????? | | o #????" #??????????? | | ; ? ? ? ????????????? | | ;###?####???????????? | | ;##??##?#???????????? | | ;##?#?##?#??????????? | | ;##?###?#???????????? | | ;##?????????????????? | | ? ????????????????? | | ?????????????????? | | ?????????????????? | | uw ?????????????????? | | ????????????????? | | " "" """ """ "" ???????????????????? | | ####### # ??? ?????????????????????? | | #??#?#? ? = ? ??????????????????????????????? | | #????#??????????????????????????????????????????? | | ?????????????????????????????????????????????????? | | ?????????????????????????????????????????????????? | | ?????????????????????????????????????????????????? | | ?????????????????????????????????????????????????? | | ?????????????????????????????????????????????????? | | ?????????????????????????????????????????????????? | | ?????????????????????????????????????????????????? | +----------------------------------------------------+ Best States ------------- Heat Dissipation 73 Energy Generation 53 Energy Capacity 300 Matter Stores 300 Matter Capacity 300 Sight Range 16 Robot Scan Range 28 Terrain Scan Range 16 Terrain Scan Density 310 Armor Coverage 800 Evasion (%) 50 Targeting Accuracy 6 Recoil Reduction 2 Offensive Hacking 21 Defensive Hacking 15 Item Schematics ----------------- None Robot Schematics ------------------ None Fabricated ------------ Nothing Repaired ---------- Nothing Studied --------- None Alien Tech Used ----------------- None Achievements -------------- It Was An Accident, I Swear Longdome?! Challenges ------------ None RPGLIKE | -11 -10 -10 -10 -9 -9 -6 --------- Run | Yrd Mat Min Sub Rec Scr Fac Levels Raised 10 | . 2 1 1 1 1 4 XP Earned 19206 | 3000 3386 1150 1845 2450 900 6475 XP Spent 17980 | 2990 2605 1900 1470 1400 1415 6200 Upgrades 39 | 11 7 2 4 4 5 6 Propulsion Slot 2 | 1 . . . . . 1 Utility Slot 6 | 2 1 1 . . . 2 Weapon Slot 2 | 1 1 . . . . . Heat Dissipation 8 | 2 3 . 2 . 1 . Energy Generation 1 | . 1 . . . . . Inventory Capacity 3 | 1 . 1 1 . . . Sensor Range 4 | 1 1 . . . 2 . Terrain Scan Density 3 | 3 . . . . . . Ranged Accuracy 4 | . . . 1 1 1 1 Hack Attack % 2 | . . . . 1 1 . Hack Defense % 3 | . . . . 2 . 1 KI Damage % 1 | . . . . . . 1 Protomatter Created 842 | . 37 13 387 147 . 258 Integrity Restored 2373 | . 192 39 1053 436 . 653 Core 2109 | . 192 39 1053 297 . 528 Parts 264 | . . . . 139 . 125 Protomatter Decayed 228 | . . 77 72 . . 79 Game ------ Seed DecoderAssemblyProtomatter Manual? 0 Play Time 01:52:48 Cumulative 93.5 hours Start 2025.11.19 @ 09:56:28 End 2025.11.19 @ 11:13:15 Sessions 1 Manual Loads 0 Difficulty Rogue Special Mode Winter2019/RPGLIKE Game No. 83 Rogue 83 Adventurer 0 Explorer 0 Win Type - Total 0 Types 0/0/0/0/0/0/0/0/0/0 Lore% 60 Gallery% 39 Achievement% 37 Wizard Run 0 Options --------- Layout 0 ASCII 0 Keyboard 0 Movement Mouse Keybinds 0 Fullscreen 2 Font 24/Smallcaps Map View 76x50 Zoom Use 0% Tactical HUD 1 Map Filters NONE Filters NONE Steam 1 RUN: 8faa1986-dfed-4380-ac59-6b89bcce3122